Workbook

Sheet прилож. № 7
A1: Приложение № 2
A2: к решению Думы Ушаковского муниципального образования от 30.08.2018 г. №__ "О внесении изменений в решение Думы Ушаковского муниципального образования № 66 от 08.12.2017 г. "Об утверждении бюджета на 2018 г. и на плановый период 2019-2020 годов"
A4: РАСПРЕДЕЛЕНИЕ БЮДЖЕТНЫХ АССИГНОВАНИЙ ПО РАЗДЕЛАМ, ПОДРАЗДЕЛАМ, ЦЕЛЕВЫМ СТАТЬЯМ (МУНИЦИПАЛЬНЫМ ПРОГРАММАМ И НЕПРОГРАММНЫМ НАПРАВЛЕНИЯМ ДЕЯТЕЛЬНОСТИ) И ВИДАМ РАСХОДОВ КЛАССИФИКАЦИИ РАСХОДОВ БЮДЖЕТОВ НА 2018 ГОД
A6: Наименование | B6: РЗ | C6: Пр | D6: КЦСР | E6: КВР | F6: Сумма (тыс. руб)
A7: В С Е Г О | F7: =F8+F92+F97+F106+F127+F166+F184+F201 -> 88884.4
A8: ОБЩЕГОСУДАРСТВЕННЫЕ ВОПРОСЫ | B8: 01 | C8: 00 | D8: 00.0.00.00000 | E8: 000 | F8: =F9+F42+F81+F33+F88 -> 23403.6
A9: Функционирование высшего должностного лица субъекта Российской Федерации и муниципального образования | B9: 01 | C9: 02 | D9: 00.0.00.00000 | E9: 000 | F9: =F10 -> 1826.3
A10: Непрограммные расходы органов местного самоуправления | B10: 01 | C10: 02 | D10: 91.0.00.00000 | E10: 000 | F10: =F11+F18 -> 1826.3
A11: Непрограммные расходы органов местного самоуправления за счет средств местного бюджета | B11: 01 | C11: 02 | D11: 91.1.00.00000 | E11: 000 | F11: =F12 -> 1826.3
A12: Осуществление органами местного самоуправления полномочий местного значения поселения | B12: 01 | C12: 02 | D12: 91.1.00.60000 | E12: 000 | F12: =F13 -> 1826.3
A13: Обеспечение деятельности в сфере установленных функций | B13: 01 | C13: 02 | D13: 91.1.00.60001 | E13: 000 | F13: =F16+F17+F32 -> 1826.3
A14: Расходы на выплаты персоналу в целях обеспечения выполнения функций государственными (муниципальными) органами, казенными учреждениями, органами управления государственными внебюджетными фондами | B14: 01 | C14: 02 | D14: 91.1.00.60001 | E14: 100 | F14: =F15 -> 1826.3
A15: Расходы на выплаты персоналу государственных (муниципальных) органов | B15: 01 | C15: 02 | D15: 91.1.00.60001 | E15: 120 | F15: =F16+F17+F32 -> 1826.3
A16: Фонд оплаты труда государственных (муниципальных) органов | B16: 01 | C16: 02 | D16: 91.1.00.60001 | E16: 121 | F16: 1413.1
A17: Взносы по обязательному социальному страхованию на выплаты денежного содержания и иные выплаты работникам государственных (муниципальных) органов | B17: 01 | C17: 02 | D17: 91.1.00.60001 | E17: 129 | F17: 343.2
A18: Непрограммные расходы органов местного самоуправления за счет средств областного бюджета | B18: 01 | C18: 02 | D18: 91.1.00.60003 | E18: 000 | F18: =F19 -> 0
A19: Субсидии на выравнивание обеспеченности муниципальных образований Иркутской области по реализации ими их отдельных расходных обязательств | B19: 01 | C19: 02 | D19: 91.1.00.60004 | E19: 000 | F19: =F20 -> 0
A20: Расходы на выплаты персоналу в целях обеспечения выполнения функций государственными (муниципальными) органами, казенными учреждениями, органами управления государственными внебюджетными фондами | B20: 01 | C20: 02 | D20: 91.1.00.60005 | E20: 100 | F20: =F21 -> 0
A21: Расходы на выплаты персоналу государственных (муниципальных) органов | B21: 01 | C21: 02 | D21: 91.1.00.60006 | E21: 120 | F21: =F22+F23 -> 0
A22: Фонд оплаты труда государственных (муниципальных) органов | B22: 01 | C22: 02 | D22: 91.1.00.60007 | E22: 121 | F22: 0
A23: Взносы по обязательному социальному страхованию на выплаты денежного содержания и иные выплаты работникам государственных (муниципальных) органов | B23: 01 | C23: 02 | D23: 91.1.00.60008 | E23: 129 | F23: 0
A24: Функционирование Правительства Российской Федерации, высших исполнительных органов государственной власти субъектов РФ, местных администраций | B24: 01 | C24: 04 | D24: 91.1.00.60009 | E24: 000 | F24: =F42+F25 -> 17857.9
A25: Программные расходы | B25: 01 | C25: 04 | D25: 91.1.00.60010 | E25: 000 | F25: =F26 -> 0
A26: Муниципальная программа "Подготовка к празднованию 70-летия победы" | B26: 01 | C26: 04 | D26: 91.1.00.60011 | E26: 000 | F26: 0
A27: Реализация мероприятий муниципальной программы за счет средств местного бюджета | B27: 01 | C27: 04 | D27: 91.1.00.60012 | E27: 000 | F27: 0
A28: Мероприятия, связанные, с подготовкой к празднованию 70-летия победы | B28: 01 | C28: 04 | D28: 91.1.00.60013 | E28: 000 | F28: 0
A29: Закупка товаров, работ и услуг для обеспечения государственных (муниципальных) нужд | B29: 01 | C29: 04 | D29: 91.1.00.60014 | E29: 200 | F29: 0
A30: Иные закупки товаров, работ и услуг для обеспечения государственных (муниципальных) нужд | B30: 01 | C30: 04 | D30: 91.1.00.60015 | E30: 240 | F30: 0
A31: Прочая закупка товаров, работ и услуг для обеспечения государственных (муниципальных) нужд | B31: 01 | C31: 04 | D31: 91.1.00.60016 | E31: 244
A32: Иные выплаты персоналу государственных (муниципальных) органов, за исключением фонда оплаты труда | B32: 01 | C32: 02 | D32: 91.1.00.60001 | E32: 122 | F32: 70
A33: Функционирование законодательных (представительных) органов государственной власти и представительных органов муниципальных образований | B33: 01 | C33: 03 | D33: 91.1.00.00000 | E33: 000 | F33: 765.4
A34: Непрограммные расходы органов местного самоуправления за счет средств местного бюджета | B34: 01 | C34: 03 | D34: 91.1.00.00000 | E34: 000 | F34: 765.4
A35: Осуществление органами местного самоуправления полномочий местного значения поселения | B35: 01 | C35: 03 | D35: 91.1.00.60000 | E35: 000 | F35: 765.4
A36: Обеспечение деятельности в сфере установленных функций | B36: 01 | C36: 03 | D36: 91.1.00.60001 | E36: 000 | F36: 765.4
A37: Расходы на выплаты персоналу в целях обеспечения выполнения функций государственными (муниципальными) органами, казенными учреждениями, органами управления государственными внебюджетными фондами | B37: 01 | C37: 03 | D37: 91.1.00.60001 | E37: 100 | F37: 765.4
A38: Расходы на выплаты персоналу государственных (муниципальных) органов | B38: 01 | C38: 03 | D38: 91.1.00.60001 | E38: 120 | F38: =F39+F40 -> 765.4
A39: Фонд оплаты труда государственных (муниципальных) органов | B39: 01 | C39: 03 | D39: 91.1.00.60001 | E39: 121 | F39: 587.9
A40: Взносы по обязательному социальному страхованию на выплаты денежного содержания и иные выплаты работникам государственных (муниципальных) органов | B40: 01 | C40: 03 | D40: 91.1.00.60001 | E40: 129 | F40: 177.5
A41: Иные выплаты персоналу государственных (муниципальных) органов, за исключением фонда оплаты труда | B41: 01 | C41: 03 | D41: 91.1.00.60001 | E41: 122 | F41: 30
A42: Непрограммные расходы органов местного самоуправления | B42: 01 | C42: 04 | D42: 91.0.00.00000 | E42: 000 | F42: =F43+F60 -> 17857.9
A43: Непрограммные расходы органов местного самоуправления за счет средств местного бюджета | B43: 01 | C43: 04 | D43: 91.1.00.00000 | E43: 000 | F43: =F44 -> 17857.2
A44: Осуществление органами местного самоуправления полномочий местного значения поселения | B44: 01 | C44: 04 | D44: 91.1.00.60000 | E44: 000 | F44: =F45 -> 17857.2
A45: Обеспечение деятельности в сфере установленных функций | B45: 01 | C45: 04 | D45: 91.1.00.60001 | E45: 000 | F45: =F46+F49+F51+F54 -> 17857.2
A46: Расходы на выплаты персоналу в целях обеспечения выполнения функций государственными (муниципальными) органами, казенными учреждениями, органами управления государственными внебюджетными фондами | B46: 01 | C46: 04 | D46: 91.1.00.60001 | E46: 100 | F46: =F47 -> 13064.2
A47: Расходы на выплаты персоналу государственных (муниципальных) органов | B47: 01 | C47: 04 | D47: 91.1.00.60001 | E47: 120 | F47: =F48+F50 -> 13064.2
A48: Фонд оплаты труда государственных (муниципальных) органов | B48: 01 | C48: 04 | D48: 91.1.00.60001 | E48: 121 | F48: 10034
A49: Иные выплаты персоналу государственных (муниципальных) органов, за исключением фонда оплаты труда | B49: 01 | C49: 04 | D49: 91.1.00.60002 | E49: 122 | F49: 60
A50: Взносы по обязательному социальному страхованию на выплаты денежного содержания и иные выплаты работникам государственных (муниципальных) органов | B50: 01 | C50: 04 | D50: 91.1.00.60001 | E50: 129 | F50: 3030.2
A51: Закупка товаров, работ и услуг для обеспечения государственных (муниципальных) нужд | B51: 01 | C51: 04 | D51: 91.1.00.60001 | E51: 200 | F51: =F52 -> 4431.7
A52: Иные закупки товаров, работ и услуг для обеспечения государственных (муниципальных) нужд | B52: 01 | C52: 04 | D52: 91.1.00.60001 | E52: 240 | F52: =F53 -> 4431.7
A53: Прочая закупка товаров, работ и услуг для обеспечения государственных (муниципальных) нужд | B53: 01 | C53: 04 | D53: 91.1.00.60001 | E53: 244 | F53: =3716.7-105-100-60-20+1000 -> 4431.7
A54: Иные бюджетные ассигнования | B54: 01 | C54: 04 | D54: 91.1.00.60001 | E54: 800 | F54: =F55+F58 -> 301.3
A55: Уплата налогов,сборов и иных платежей | B55: 01 | C55: 04 | D55: 91.1.00.60001 | E55: 850 | F55: =F56+F57 -> 71
A56: Уплата прочих налогов, сборов | B56: 01 | C56: 04 | D56: 91.1.00.60001 | E56: 852 | F56: 16
A57: Уплата иных платежей | B57: 01 | C57: 04 | D57: 91.1.00.60001 | E57: 853 | F57: =35+20 -> 55
A58: Исполнение судебных актов | B58: 01 | C58: 04 | D58: 91.1.00.60001 | E58: 830 | F58: =F59 -> 230.3
A59: Исполнение судебных актов Российской Федерации и мировых соглашений по возмещению вреда, причиненного в результате незаконных действий (бездействия) органов государственной власти (государственных органов), органов местного самоуправления либо должностных лиц этих органов, а также в результате деятельности казенных учреждений | B59: 01 | C59: 04 | D59: 91.1.00.60001 | E59: 831 | F59: =125.3+105 -> 230.3
A60: Непрограммные расходы органов местного самоуправления за счет средств областного бюджета | B60: 01 | C60: 04 | D60: 91.2.00.00000 | E60: 000 | F60: =F69+F61 -> 0.7
A61: Субсидии на выравнивание обеспеченности муниципальных образований Иркутской области по реализации ими их отдельных расходных обязательств | B61: 01 | C61: 04 | D61: 91.2.00.72600 | E61: 000 | F61: =F62+F66 -> 0
A62: Расходы на выплаты персоналу в целях обеспечения выполнения функций государственными (муниципальными) органами, казенными учреждениями, органами управления государственными внебюджетными фондами | B62: 01 | C62: 04 | D62: 91.2.00.72600 | E62: 100 | F62: =F63 -> 0
A63: Расходы на выплаты персоналу государственных (муниципальных) органов | B63: 01 | C63: 04 | D63: 91.2.00.72600 | E63: 120 | F63: =F64+F65 -> 0
A64: Фонд оплаты труда государственных (муниципальных) органов | B64: 01 | C64: 04 | D64: 91.2.00.72600 | E64: 121 | F64: 0
A65: Взносы по обязательному социальному страхованию на выплаты денежного содержания и иные выплаты работникам государственных (муниципальных) органов | B65: 01 | C65: 04 | D65: 91.2.00.72600 | E65: 129 | F65: 0
A66: Иные закупки товаров, работ и услуг для обеспечения государственных (муниципальных) нужд | B66: 01 | C66: 04 | D66: 91.2.00.72600 | E66: 200 | F66: =F67 -> 0
A67: Прочая закупка товаров, работ и услуг для обеспечения государственных (муниципальных) нужд | B67: 01 | C67: 04 | D67: 91.2.00.72600 | E67: 240 | F67: =F68 -> 0
A68: Прочая закупка товаров, работ и услуг для обеспечения государственных (муниципальных) нужд | B68: 01 | C68: 04 | D68: 91.2.00.72600 | E68: 244 | F68: 0
A69: Субвенции на осуществление областного государственного полномочия по определению перечня должностных лиц органов местного самоуправления, уполномоченных составлять протоколы об административных правонарушениях, предусмотренных отдельными законами Иркутской области об административной ответственности | B69: 01 | C69: 04 | D69: 91.2.00.73150 | E69: 000 | F69: =F72 -> 0.7
A70: Закупка товаров, работ и услуг для обеспечения государственных (муниципальных) нужд | B70: 01 | C70: 04 | D70: 91.2.00.73150 | E70: 200 | F70: =F71 -> 0.7
A71: Иные закупки товаров, работ и услуг для обеспечения государственных (муниципальных) нужд | B71: 01 | C71: 04 | D71: 91.2.00.73150 | E71: 240 | F71: =F72 -> 0.7
A72: Прочая закупка товаров, работ и услуг для обеспечения государственных (муниципальных) нужд | B72: 01 | C72: 04 | D72: 91.2.00.73150 | E72: 244 | F72: 0.7
A73: Обеспечение проведения выборов и референдумов | B73: 01 | C73: 07 | D73: 00.0.00.00000 | E73: 000 | F73: =F74 -> 0
A74: Непрограммные расходы органов местного самоуправления | B74: 01 | C74: 07 | D74: 91.0.00.00000 | E74: 000 | F74: 0
A75: Непрограммные расходы органов местного самоуправления за счет средств местного бюджета | B75: 01 | C75: 07 | D75: 91.1.00.00000 | E75: 000 | F75: 0
A76: Осуществление органами местного самоуправления полномочий местного значения поселения | B76: 01 | C76: 07 | D76: 91.1.00.60000 | E76: 000 | F76: 0
A77: Проведения выборов и референдумов | B77: 01 | C77: 07 | D77: 91.1.00.60003 | E77: 000 | F77: 0
A78: Закупка товаров, работ и услуг для обеспечения государственных (муниципальных) нужд | B78: 01 | C78: 07 | D78: 91.1.00.60003 | E78: 200 | F78: 0
A79: Иные закупки товаров, работ и услуг для обеспечения государственных (муниципальных) нужд | B79: 01 | C79: 07 | D79: 91.1.00.60003 | E79: 240 | F79: 0
A80: Прочая закупка товаров, работ и услуг для обеспечения государственных (муниципальных) нужд | B80: 01 | C80: 07 | D80: 91.1.00.60003 | E80: 244 | F80: 0
A81: Резервные фонды | B81: 01 | C81: 11 | D81: 00.0.00.00000 | E81: 000 | F81: =F82 -> 300
A82: Непрограммные расходы органов местного самоуправления | B82: 01 | C82: 11 | D82: 91.1.00.00000 | E82: 000 | F82: 300
A83: Непрограммные расходы органов местного самоуправления за счет средств местного бюджета | B83: 01 | C83: 11 | D83: 91.1.00.00000 | E83: 000 | F83: =F84 -> 300
A84: Осуществление органами местного самоуправления полномочий местного значения поселения | B84: 01 | C84: 11 | D84: 91.1.00.60000 | E84: 000 | F84: 300
A85: Резервный фонд администрации муниципального образования | B85: 01 | C85: 11 | D85: 91.1.00.60004 | E85: 000 | F85: 300
A86: Иные бюджетные ассигнования | B86: 01 | C86: 11 | D86: 91.1.00.60004 | E86: 800 | F86: 300
A87: Резервные средства | B87: 01 | C87: 11 | D87: 91.1.00.60004 | E87: 870 | F87: 300
A88: Другие общегосударственные вопросы | B88: 01 | C88: 13 | D88: 91.1.00.00000 | E88: 000 | F88: =F89 -> 2654
A89: Расходы на выплату персоналу в целях обеспечения выполнения функций государственными (муниципальными) органами, казенными учреждениями, органами управления государственными внебюджетными фондами | B89: 01 | C89: 13 | D89: 91.1.00.60002 | E89: 100 | F89: =F90+F91 -> 2654
A90: Расходы на выплаты персоналу в целях обеспечения выполнения функций государственными (муниципальными) органами, казенными учреждениями, органами управления государственными внебюджетными фондами | B90: 01 | C90: 13 | D90: 91.1.00.60002 | E90: 111 | F90: 2088.1
A91: Взносы по обязательному социальному страхованию на выплаты по оплате труда работников и иные выплаты работникам учреждений | B91: 01 | C91: 13 | D91: 91.1.00.60002 | E91: 119 | F91: 565.9
A92: НАЦИОНАЛЬНАЯ ОБОРОНА | B92: 02 | C92: 00 | D92: 00.0.00.00000 | E92: 000 | F92: =F93+F94+F95 -> 327.2
A93: Мобилизационная и вневойсковая подготовка | B93: 02 | C93: 03 | D93: 91.3.00.51180 | E93: 121 | F93: 228.3
A94: Мобилизационная и вневойсковая подготовка | B94: 02 | C94: 03 | D94: 91.3.00.51180 | E94: 129 | F94: 68.9
A95: Закупка товаров, работ и услуг для обеспечения государственных (муниципальных) нужд | B95: 02 | C95: 03 | D95: 91.3.00.51180 | E95: 200 | F95: 30
A96: Иные закупки товаров, работ и услуг для обеспечения государственных (муниципальных) нужд | B96: 02 | C96: 03 | D96: 91.3.00.51180 | E96: 240 | F96: 30
A97: НАЦИОНАЛЬНАЯ БЕЗОПАСНОСТЬ И ПРАВООХРАНИТЕЛЬНАЯ ДЕЯТЕЛЬНОСТЬ | B97: 03 | C97: 00 | D97: 00.0.00.00000 | E97: 000 | F97: =F98 -> 350
A98: Обеспечение пожарной безопасности | B98: 03 | C98: 10 | D98: 00.0.00.00000 | E98: 000 | F98: 350
A99: Непрограммные расходы органов местного самоуправления | B99: 03 | C99: 10 | D99: 91.0.00.00000 | E99: 000 | F99: 350
A100: Непрограммные расходы органов местного самоуправления за счет средств местного бюджета | B100: 03 | C100: 10 | D100: 91.1.00.00000 | E100: 000 | F100: 350
A101: Осуществление органами местного самоуправления полномочий местного значения поселения | B101: 03 | C101: 10 | D101: 91.1.00.60000 | E101: 000 | F101: 350
A102: Реализация других функций, связанных с обеспечением национальной безопасности и правоохранительной деятельности | B102: 03 | C102: 10 | D102: 91.1.00.60007 | E102: 000 | F102: 350
A103: Закупка товаров, работ и услуг для обеспечения государственных (муниципальных) нужд | B103: 03 | C103: 10 | D103: 91.1.00.60007 | E103: 200 | F103: 350
A104: Иные закупки товаров, работ и услуг для обеспечения государственных (муниципальных) нужд | B104: 03 | C104: 10 | D104: 91.1.00.60007 | E104: 240 | F104: =F105 -> 350
A105: Прочая закупка товаров, работ и услуг для обеспечения государственных (муниципальных) нужд | B105: 03 | C105: 10 | D105: 91.1.00.60007 | E105: 244 | F105: 350
A106: НАЦИОНАЛЬНАЯ ЭКОНОМИКА | B106: 04 | C106: 00 | D106: 00.0.00.00000 | E106: 000 | F106: =F107+F117 -> 17296.8
A107: Дорожное хозяйство (дорожные фонды) | B107: 04 | C107: 09 | D107: 00.0.00.00000 | E107: 000 | F107: =F108 -> 10559.8
A108: Непрограммные расходы органов местного самоуправления | B108: 04 | C108: 09 | D108: 91.0.00.00000 | E108: 000 | F108: 10559.8
A109: Непрограммные расходы органов местного самоуправления за счет средств местного бюджета | B109: 04 | C109: 09 | D109: 91.1.00.00000 | E109: 000 | F109: 10559.8
A110: Осуществление органами местного самоуправления полномочий местного значения поселения | B110: 04 | C110: 09 | D110: 91.1.00.60000 | E110: 000 | F110: =F112 -> 10559.8
A111: Приобретение материальных и нематериальных активов в сфере установленных функций | B111: 04 | C111: 09 | D111: 91.1.00.60010 | E111: 000 | F111: =F113 -> 10559.8
A112: Иные мероприятия и сфере установленных функций | B112: 04 | C112: 09 | D112: 91.1.00.60011 | E112: 000 | F112: 10559.8
A113: Закупка товаров, работ и услуг для обеспечения государственных (муниципальных) нужд | B113: 04 | C113: 09 | D113: 91.1.00.60011 | E113: 200 | F113: 10559.8
A114: Иные закупки товаров, работ и услуг для обеспечения государственных (муниципальных) нужд | B114: 04 | C114: 09 | D114: 91.1.00.60011 | E114: 240 | F114: =F116+F115 -> 10559.8
A115: Закупка товаров, работ, услуг в целях капитального ремонта государственного (муниципального) имущества | B115: 04 | C115: 09 | D115: 91.1.00.60011 | E115: 243 | F115: 1960
A116: Прочая закупка товаров, работ и услуг для обеспечения государственных (муниципальных) нужд | B116: 04 | C116: 09 | D116: 91.1.00.60011 | E116: 244 | F116: =5633.8+2966 -> 8599.8
A117: Другие вопросы в области национальной экономике | B117: 04 | C117: 12 | D117: 00.0.00.00000 | E117: 000 | F117: =F118 -> 6737
A118: Непрограммные расходы органов местного самоуправления | B118: 04 | C118: 12 | D118: 91.1.00.00000 | E118: 000 | F118: 6737
A119: Непрограммные расходы органов местного самоуправления за счет средств местного бюджета | B119: 04 | C119: 12 | D119: 91.1.00.00000 | E119: 000 | F119: 6737
A120: Осуществление органами местного самоуправления полномочий местного значения поселения | B120: 04 | C120: 12 | D120: 91.1.00.60000 | E120: 000 | F120: =F122 -> 6737
A121: Приобретение материальных и нематериальных активов в сфере установленных функций | B121: 04 | C121: 12 | D121: 91.1.00.60010 | E121: 000 | F121: =F122 -> 6737
A122: Иные мероприятия и сфере установленных функций | B122: 04 | C122: 12 | D122: 91.1.00.60011 | E122: 000 | F122: 6737
A123: Закупка товаров, работ и услуг для обеспечения государственных (муниципальных) нужд | B123: 04 | C123: 12 | D123: 91.1.00.60011 | E123: 200 | F123: 6737
A124: Иные закупки товаров, работ и услуг для обеспечения государственных (муниципальных) нужд | B124: 04 | C124: 12 | D124: 91.1.00.60011 | E124: 240 | F124: =F126+F125 -> 6737
A125: Закупка товаров, работ, услуг в целях капитального ремонта государственного (муниципального) имущества | B125: 04 | C125: 12 | D125: 91.1.00.60011 | E125: 243 | F125: 873.7
A126: Прочая закупка товаров, работ и услуг для обеспечения государственных (муниципальных) нужд | B126: 04 | C126: 12 | D126: 91.1.00.60011 | E126: 244 | F126: =8829.3-2966 -> 5863.3
A127: ЖИЛИЩНО-КОММУНАЛЬНОЕ ХОЗЯЙСТВО | B127: 05 | C127: 00 | D127: 00.0.00.00000 | E127: 000 | F127: =F128+F136+F144 -> 24055.7
A128: Жилищное хозяйство | B128: 05 | C128: 01 | D128: 00.0.00.00000 | E128: 000 | F128: =F129 -> 6040
A129: Непрограммные расходы органов местного самоуправления | B129: 05 | C129: 01 | D129: 91.0.00.00000 | E129: 000 | F129: 6040
A130: Непрограммные расходы органов местного самоуправления за счет средств местного бюджета | B130: 05 | C130: 01 | D130: 91.1.00.00000 | E130: 000 | F130: 6040
A131: Осуществление органами местного самоуправления полномочий местного значения поселения | B131: 05 | C131: 01 | D131: 91.1.00.60000 | E131: 000 | F131: 6040
A132: Текущий ремонт в сфере установленных функций | B132: 05 | C132: 01 | D132: 91.1.00.60009 | E132: 000 | F132: 6040
A133: Закупка товаров, работ и услуг для обеспечения государственных (муниципальных) нужд | B133: 05 | C133: 01 | D133: 91.1.00.60009 | E133: 200 | F133: 6040
A134: Иные закупки товаров, работ и услуг для обеспечения государственных (муниципальных) нужд | B134: 05 | C134: 01 | D134: 91.1.00.60009 | E134: 240 | F134: 6040
A135: Прочая закупка товаров, работ и услуг для обеспечения государственных (муниципальных) нужд | B135: 05 | C135: 01 | D135: 91.1.00.60009 | E135: 244 | F135: =40+6000 -> 6040
A136: Коммунальное хозяйство | B136: 05 | C136: 02 | D136: 00.0.00.00000 | E136: 000 | F136: =F137 -> 1900.7
A137: Непрограммные расходы органов местного самоуправления | B137: 05 | C137: 02 | D137: 91.0.00.00000 | E137: 000 | F137: 1900.7
A138: Непрограммные расходы органов местного самоуправления за счет средств местного бюджета | B138: 05 | C138: 02 | D138: 91.1.00.00000 | E138: 000 | F138: =F139 -> 8400.7
A139: Осуществление органами местного самоуправления полномочий местного значения поселения | B139: 05 | C139: 02 | D139: 91.1.00.60000 | E139: 000 | F139: =F140 -> 8400.7
A140: Иные мероприятия и сфере установленных функций | B140: 05 | C140: 02 | D140: 91.1.00.60011 | E140: 000 | F140: =F141 -> 8400.7
A141: Закупка товаров, работ и услуг для обеспечения государственных (муниципальных) нужд | B141: 05 | C141: 02 | D141: 91.1.00.60011 | E141: 200 | F141: =F142 -> 8400.7
A142: Иные закупки товаров, работ и услуг для обеспечения государственных (муниципальных) нужд | B142: 05 | C142: 02 | D142: 91.1.00.60011 | E142: 240 | F142: =F143 -> 8400.7
A143: Прочая закупка товаров, работ и услуг для обеспечения государственных (муниципальных) нужд | B143: 05 | C143: 02 | D143: 91.1.00.60011 | E143: 244 | F143: =7400+1000+0.3+0.4-6800+6800 -> 8400.7
A144: Благоустройство | B144: 05 | C144: 03 | D144: 00.0.00.00000 | E144: 000 | F144: =F145 -> 16115
A145: Непрограммные расходы органов местного самоуправления | B145: 05 | C145: 03 | D145: 91.0.00.00000 | E145: 000 | F145: =F146 -> 16115
A146: Непрограммные расходы органов местного самоуправления за счет средств местного бюджета | B146: 05 | C146: 03 | D146: 91.1.00.00000 | E146: 000 | F146: =F147 -> 16115
A147: Осуществление органами местного самоуправления полномочий местного значения поселения | B147: 05 | C147: 03 | D147: 91.1.00.60000 | E147: 000 | F147: =F148 -> 16115
A148: Мероприятия в области жилищно-коммунального хозяйства | B148: 05 | C148: 03 | D148: 91.1.00.60100 | E148: 000 | F148: =F149+F155+F165 -> 16115
A149: Уличное освещение | B149: 05 | C149: 03 | D149: 91.1.00.60101 | E149: 000 | F149: =F150+F153 -> 2362.3
A150: Закупка товаров, работ и услуг для обеспечения государственных (муниципальных) нужд | B150: 05 | C150: 03 | D150: 91.1.00.60101 | E150: 200 | F150: =F151 -> 2362.3
A151: Иные закупки товаров, работ и услуг для обеспечения государственных (муниципальных) нужд | B151: 05 | C151: 03 | D151: 91.1.00.60101 | E151: 240 | F151: =F152 -> 2362.3
A152: Прочая закупка товаров, работ и услуг для обеспечения государственных (муниципальных) нужд | B152: 05 | C152: 03 | D152: 91.1.00.60101 | E152: 244 | F152: =1362.3+600+400 -> 2362.3
A153: Иные бюджетные ассигнования | B153: 05 | C153: 03 | D153: 91.1.00.60101 | E153: 800 | F153: =F154 -> 0
A154: Уплата иных платежей | B154: 05 | C154: 03 | D154: 91.1.00.60001 | E154: 853 | F154: 0
A155: Прочие мероприятия по благоустройству городских округов и поселений | B155: 05 | C155: 03 | D155: 91.1.00.60105 | E155: 000 | F155: =F156+F159 -> 12972.4
A156: Закупка товаров, работ и услуг для обеспечения государственных (муниципальных) нужд | B156: 05 | C156: 03 | D156: 91.1.00.60105 | E156: 200 | F156: =F157 -> 10472.4
A157: Иные закупки товаров, работ и услуг для обеспечения государственных (муниципальных) нужд | B157: 05 | C157: 03 | D157: 91.1.00.60105 | E157: 240 | F157: =F158 -> 10472.4
A158: Прочая закупка товаров, работ и услуг для обеспечения государственных (муниципальных) нужд | B158: 05 | C158: 03 | D158: 91.1.00.60105 | E158: 244 | F158: 10472.4
A159: Непрограммные расходы органов местного самоуправления за счет средств областного бюджета | B159: 05 | C159: 03 | D159: 91.4.00.S2370 | E159: 000 | F159: =F160 -> 2500
A160: Субсидии на реализацию мероприятий перечня проектов народных инициатив за счет областного бюджета | B160: 05 | C160: 03 | D160: 91.4.00.S2370 | E160: 000 | F160: =F161 -> 2500
A161: Закупка товаров, работ и услуг для обеспечения государственных (муниципальных) нужд | B161: 05 | C161: 03 | D161: 91.4.00.S2370 | E161: 200 | F161: =F162 -> 2500
A162: Иные закупки товаров, работ и услуг для обеспечения государственных (муниципальных) нужд | B162: 05 | C162: 03 | D162: 91.4.00.S2370 | E162: 240 | F162: =F163 -> 2500
A163: Прочая закупка товаров, работ и услуг для обеспечения государственных (муниципальных) нужд | B163: 05 | C163: 03 | D163: 91.4.00.S2370 | E163: 244 | F163: =2250+250-250+250 -> 2500
A164: Субсидии юридическим лицам (кроме некоммерческих организаций), индивидуальным предпринимателям, физическим лицам – производителям товаров, работ, услуг | B164: 05 | C164: 03 | D164: 91.1.00.60100 | E164: 810 | F164: =F165 -> 780.3
A165: Субсидии на возмещение недополученных доходов и (или) возмещение фактически понесенных затрат в связи с производством (реализацией) товаров, выполнением работ, оказанием услуг | B165: 05 | C165: 03 | D165: 91.1.00.60105 | E165: 811 | F165: =3697.4-2917.1 -> 780.3
A166: КУЛЬТУРА, КИНЕМАТОГРАФИЯ | B166: 08 | C166: 00 | D166: 00.0.00.00000 | E166: 000 | F166: =F167 -> 22947.2
A167: КУЛЬТУРА | B167: 08 | C167: 01 | D167: 91.0.00.00000 | E167: 000 | F167: =F168+F174+F181 -> 22947.2
A168: Непрограммные расходы органов местного самоуправления | B168: 08 | C168: 01 | D168: 91.1.00.00000 | E168: 000 | F168: =F169 -> 13824
A169: Осуществление органами местного самоуправления полномочий местного значения поселения | B169: 08 | C169: 01 | D169: 91.1.00.60002 | E169: 000 | F169: =F170 -> 13824
A170: Расходы на выплату персоналу в целях обеспечения выполнения функций государственными (муниципальными) органами, казенными учреждениями, органами управления государственными внебюджетными фондами | B170: 08 | C170: 01 | D170: 91.1.00.60002 | E170: 100 | F170: =F171 -> 13824
A171: Расходы на выплату персоналу казенных учреждений | B171: 08 | C171: 01 | D171: 91.1.00.60002 | E171: 110 | F171: =F172+F173 -> 13824
A172: Фонд оплаты труда казенных учреждений и взносы по обязательному социальному страхованию | B172: 08 | C172: 01 | D172: 91.1.00.60002 | E172: 111 | F172: =10659-2088.1+1396+460.8 -> 10427.7
A173: Взносы по обязательному социальному страхованию на выплаты по оплате труда работников и иные выплаты работникам учреждений | B173: 08 | C173: 01 | D173: 91.1.00.60002 | E173: 119 | F173: =3219-565.9+604+139.2 -> 3396.3
A174: Непрограммные расходы органов местного самоуправления | B174: 08 | C174: 01 | D174: 91.0.00.00000 | E174: 000 | F174: =F175 -> 8990.2
A175: Непрограммные расходы органов местного самоуправления за счет средств местного бюджета | B175: 08 | C175: 01 | D175: 91.1.00.00000 | E175: 000 | F175: 8990.2
A176: Осуществление органами местного самоуправления полномочий местного значения поселения | B176: 08 | C176: 01 | D176: 91.1.00.60000 | E176: 000 | F176: 8990.2
A177: Обеспечение деятельности в сфере установленных функции бюджетных, автономных и казенных учреждений | B177: 08 | C177: 01 | D177: 91.1.00.60002 | E177: 000 | F177: 8990.2
A178: Закупка товаров, работ и услуг для обеспечения государственных (муниципальных) нужд | B178: 08 | C178: 01 | D178: 91.1.00.60002 | E178: 200 | F178: 8990.2
A179: Иные закупки товаров, работ и услуг для обеспечения государственных (муниципальных) нужд | B179: 08 | C179: 01 | D179: 91.1.00.60002 | E179: 240 | F179: 8990.2
A180: Прочая закупка товаров, работ и услуг для обеспечения государственных (муниципальных) нужд | B180: 08 | C180: 01 | D180: 91.1.00.60002 | E180: 244 | F180: 8990.2
A181: Иные бюджетные ассигнования | B181: 08 | C181: 01 | D181: 91.1.00.60002 | E181: 850 | F181: =F183+F182 -> 133
A182: Уплата прочих налогов, сборов | B182: 08 | C182: 01 | D182: 91.1.00.60002 | E182: 852 | F182: 8
A183: Уплата иных платежей | B183: 08 | C183: 01 | D183: 91.1.00.60002 | E183: 853 | F183: =25+100 -> 125
A184: СОЦИАЛЬНАЯ ПОЛИТИКА | B184: 10 | C184: 00 | D184: 00.0.00.00000 | E184: 000 | F184: =F185 -> 244.7
A185: Пенсионное обеспечение | B185: 10 | C185: 01 | D185: 00.0.00.00000 | E185: 000 | F185: 244.7
A186: Непрограммные расходы органов местного самоуправления | B186: 10 | C186: 01 | D186: 91.0.00.00000 | E186: 000 | F186: 244.7
A187: Непрограммные расходы органов местного самоуправления за счет средств местного бюджета | B187: 10 | C187: 01 | D187: 91.1.00.00000 | E187: 000 | F187: 244.7
A188: Осуществление органами местного самоуправления полномочий местного значения поселения | B188: 10 | C188: 01 | D188: 91.1.00.60000 | E188: 000 | F188: 244.7
A189: Доплаты к пенсиям муниципальных служащих | B189: 10 | C189: 01 | D189: 91.1.00.60018 | E189: 000 | F189: 244.7
A190: Социальное обеспечение и иные выплаты населению | B190: 10 | C190: 01 | D190: 91.1.00.60018 | E190: 300 | F190: 244.7
A191: Публичные нормативные социальные выплаты гражданам | B191: 10 | C191: 01 | D191: 91.1.00.60018 | E191: 310 | F191: 244.7
A192: Иные пенсии, социальные доплаты к пенсиям | B192: 10 | C192: 01 | D192: 91.1.00.60018 | E192: 312 | F192: 244.7
A193: ФИЗИЧЕСКАЯ КУЛЬТУРА И СПОРТ | B193: 11 | C193: 00 | D193: 00.0.00.00000 | E193: 000 | F193: =F194 -> 
A194: Другие вопросы в области физической культуры и спорта | B194: 11 | C194: 05 | D194: 00.0.00.00000 | E194: 000
A195: Непрограммные расходы органов местного самоуправления | B195: 11 | C195: 05 | D195: 91.0.00.00000 | E195: 000
A196: Непрограммные расходы органов местного самоуправления за счет средств местного бюджета | B196: 11 | C196: 05 | D196: 91.1.00.00000 | E196: 000
A197: Осуществление органами местного самоуправления полномочий местного значения поселения | B197: 11 | C197: 05 | D197: 91.1.00.60000 | E197: 000
A198: Обеспечение деятельности в сфере установленных функции бюджетных, автономных и казенных учреждений | B198: 11 | C198: 05 | D198: 91.1.00.60002 | E198: 000
A199: Закупка товаров, работ и услуг для обеспечения государственных (муниципальных) нужд | B199: 11 | C199: 05 | D199: 91.1.00.60002 | E199: 200
A200: Иные закупки товаров, работ и услуг для обеспечения государственных (муниципальных) нужд | B200: 11 | C200: 05 | D200: 91.1.00.60002 | E200: 240 | F200: =#REF! -> 
A201: МЕЖБЮДЖЕТНЫЕ ТРАНСФЕРТЫ БЮДЖЕТАМ БЮДЖЕТНОЙ СИСТЕМЫ РФ | B201: 14 | C201: 00 | D201: 00.0.00.00000 | E201: 000 | F201: =F202 -> 259.2
A202: Прочие межбюджетные трансферты общего характера | B202: 14 | C202: 03 | D202: 00.0.00.00000 | E202: 000 | F202: =F203 -> 259.2
... 13 more rows
